[Event "20th Delhi GM Open 2023"]
[Site "New Delhi"]
[Date "2023.03.27"]
[Round "7.4"]
[White "Kobalia, Mikhail"]
[Black "Dzhumaev, Marat"]
[Result "0-1"]
[ECO "C77"]
[WhiteElo "2577"]
[BlackElo "2428"]
[Annotator "TA"]
[PlyCount "124"]
[EventDate "2023.03.23"]
[EventType "swiss"]
[EventCountry "IND"]
[SourceTitle "playchess.com"]
[Source "ChessBase"]
[SourceQuality "1"]
[TimeControl "5400+30"]

{[%evp 16,124,8,0,21,22,19,0,18,20,29,20,40,6,29,25,11,-7,0,-6,0,-18,0,0,0,0,0,0,0,0,0,-12,0,0,0,0,0,0,0,-322,-324,-348,-348,-540,-311,-586,-577,-577,-555,-597,-590,-748,-722,-804,-790,-742,-410,-365,-417,-468,-461,-587,-685,-701,-312,-312,-311,-260,-329,-389,0,0,-61,-132,-22,-29981,-29981,-29984,0,0,0,-29984,-29976,-29983,0,0,0,0,0,0,0,0,0,0,0,0,0,0,0,0,0,0,0,0,0,0,0,-29988,-29989,-29992,-812]} 1. e4 {[%emt 0:00:03]} e5 {[%emt 0:00:23]} 2. Nf3 {[%emt 0:00:03]} Nc6 {[%emt 0:00:14]} 3. Bb5 {[%emt 0:00:05][%cal Bf1b5,Bb5a4,Ba4b3][%mdl 32]} a6 {[%emt 0:00:14]} 4. Ba4 {[%emt 0:00:04]} Nf6 {[%emt 0:00:14]} 5. O-O {[%emt 0:00:03]} Be7 {[%emt 0:00:12]} 6. d3 {[%emt 0:07:54]} b5 {[%emt 0:00:48]} 7. Bb3 {[%emt 0:00:03]} d6 {[%emt 0:00:27]} 8. a3 {[%emt 0:00:57]} O-O {[%emt 0:01:23]} 9. Nc3 {[%emt 0:00:07]} Na5 {[%emt 0:00:14][%cal Bc6a5,Ba5b7,Bb7d8,Bd8e6][%mdl 32] C77: Ruy Lopez: 3...a6 4 Ba4 Nf6, unusual lines.} 10. Ba2 {[%emt 0:00:11]} Be6 {[%emt 0:00:10]} 11. Bg5 {[%emt 0:00:16]} Bxa2 {[%emt 0:02:29] The position is equal.} 12. Rxa2 {[%emt 0:00:16]} c6 {[%emt 0:26:54] [#]} 13. b4 $146 {[%emt 0:10:02]} ({Predecessor:} 13. Ne2 h6 14. Bd2 c5 15. Ng3 Re8 16. Nf5 Bf8 17. Bxa5 Qxa5 18. Ne3 Qd8 19. Nd2 {0-1 Stojanovski,D (2454)-Dragnev,V (2466) EU-chT (Men) 21st 2017 (7.3)}) 13... Nb7 {[%emt 0:00:09]} 14. a4 {[%emt 0:01:00]} h6 {[%emt 0:00:31]} (14... a5 $5 {[%cal Ra5b4]} 15. axb5 axb4 16. Rxa8 (16. bxc6 bxc3 17. Rxa8 Qxa8 $11) 16... Qxa8 17. bxc6 bxc3 18. cxb7 Qxb7 $11) 15. Bxf6 {[%emt 0:08:06]} Bxf6 {[%emt 0:00:13]} 16. Qb1 {[%emt 0:00:30]} Qd7 {[%emt 0:08:13]} 17. Qb3 {[%emt 0:00:54]} Rab8 {[%emt 0:05:16]} 18. Nd1 {[%emt 0:13:22]} Nd8 {[%emt 0:04:20]} 19. Ne3 {[%emt 0:04:40]} Ne6 {[%emt 0:00:13]} 20. axb5 {[%emt 0:00:10]} axb5 {[%emt 0:00:11]} 21. Rfa1 {[%emt 0:01:06]} g6 {[%emt 0:02:40]} 22. Ra7 {[%emt 0:00:47]} Qc8 {[%emt 0:00:41]} 23. c4 {[%emt 0:07:17]} Bd8 {[%emt 0:05:06]} 24. c5 {[%emt 0:12:20][%mdl 64] Deflection} dxc5 {[%emt 0:00:53]} 25. Nxe5 {[%emt 0:02:23]} Bf6 {[%emt 0:03:17]} 26. N3g4 {[%emt 0:00:36][%csl LRf6,LRh6] Excellent horsemanship.} Bg7 {[%emt 0:01:22]} 27. R1a6 $2 {[%emt 0:05:10][%mdl 8192]} (27. Nd7 $1 $11 Bxa1 28. Rxa1) 27... Rb7 $1 $19 {[%emt 0:18:22]} 28. Nf3 {[%emt 0:11:05]} (28. Nxc6 $2 {too greedy.} Rxa7 29. Rxa7 Qxc6 $19) 28... cxb4 {[%emt 0:11:36]} 29. d4 {[%emt 0:03:05] Prevents Nc5.} (29. Qxb4 $142 Nc7 {[%mdl 64] Discovered Attack} 30. Ra5 Rxa7 31. Rxa7 Qxg4 32. Rxc7) 29... Nc7 {[%emt 0:00:50][%cal Oc7a6]} (29... Bxd4 $2 {loses.} 30. Nxd4 Nxd4 31. Nf6+ Kg7 32. Qxb4 $19) 30. Nge5 $2 {[%emt 0:02:54]} (30. Rxb7 Nxa6 31. Ra7 Qxg4 32. Rxa6) 30... Nxa6 {[%emt 0:00:18]} 31. Rxa6 {[%emt 0:00:02]} Rc7 {[%emt 0:00:26]} 32. Ra2 {[%emt 0:00:24]} Qe6 {[%emt 0:01:19]} 33. Qb1 {[%emt 0:03:37]} Rd8 {[%emt 0:02:06]} 34. Rd2 {[%emt 0:01:08]} Bxe5 {[%emt 0:00:47][%mdl 64] Deflection} 35. Nxe5 {[%emt 0:00:02]} Qxe5 {[%emt 0:02:19]} 36. dxe5 {[%emt 0:00:04]} Rxd2 {[%emt 0:00:06][%mdl 4096] Endgame KQ-KRR} 37. h4 {[%emt 0:00:41]} c5 {[%emt 0:00:24]} 38. e6 {[%emt 0:00:40]} fxe6 {[%emt 0:00:15] ...c4 would be deadly.} 39. Qc1 {[%emt 0:00:04]} Rdd7 {[%emt 0:02:02]} (39... Rd6 $142 40. Qxh6 Rg7) 40. Qxh6 {[%emt 0:00:03]} Rg7 {[%emt 0:00:11]} 41. h5 {[%emt 0:02:40]} b3 {[%emt 0:00:31] ...b2 is the strong threat.} 42. Qd2 {[%emt 0:00:02]} gxh5 $2 {[%emt 0:00:20]} ({Black should play} 42... g5 $1 $19 43. Qd6 Rge7) 43. Qd8+ $1 $15 {[%emt 0:00:37]} Kh7 {[%emt 0:00:06]} 44. Qe8 {[%emt 0:00:01]} (44. Qh4 $1 $15) 44... Rgf7 {[%emt 0:02:52]} (44... Rg6 $17 45. Qxb5 Rcg7 46. Qxb3 Rxg2+ 47. Kf1 R2g6) 45. Qxb5 {[%emt 0:00:19][%mdl 8192]} (45. Qxe6 $11 b2 46. Qb3) 45... Rb7 {[%emt 0:00:19]} 46. Qxc5 {[%emt 0:00:01]} Rf6 {[%emt 0:00:48]} 47. Qc6 {[%emt 0:01:12]} Rff7 {[%emt 0:00:10]} 48. Qc5 $1 {[%emt 0:00:05]} Kg6 {[%emt 0:00:18]} 49. f4 {[%emt 0:01:00] [#]} Rxf4 $2 {[%emt 0:00:23]} (49... b2 $1 {mates} 50. Qg5+ Kh7 51. Kh2 b1=Q 52. f5 Qxe4 53. Qg6+ Kh8 54. Qh6+ Kg8 55. Qg6+ Kf8 56. Qh6+ Rg7 57. Qh8+ Rg8 58. Qh6+ Ke8 59. Qxh5+ Ke7 60. f6+ {[%mdl 64] Decoy} Kxf6 61. Qh6+ Ke7 62. Qh3 Qf4+ 63. g3 Qf2+ 64. Kh1 Rb1+ 65. Qf1 Rxf1#) 50. Qc8 $11 {[%emt 0:00:11][%csl LRb7,LRe6]} Rff7 {[%emt 0:00:53] Hoping for ...b2.} 51. Qxe6+ {[%emt 0:00:17]} Kh7 {[%emt 0:00:16]} 52. Qd5 {[%emt 0:00:15]} Kg6 {[%emt 0:01:00]} 53. Qe6+ $1 {[%emt 0:00:44]} Kg5 {[%emt 0:00:28] ( -> ...b2)} 54. Qe5+ {[%emt 0:00:37]} Kg4 {[%emt 0:00:26] And now ...b2 would win.} 55. Kh2 {[%emt 0:01:59][%csl Gh2][%cal Re5g3]} h4 {[%emt 0:00:06] Repels Qg3+. aiming for ...b2. Chess con chili.} 56. Qb2 {[%emt 0:00:20]} Kf4 {[%emt 0:00:17]} 57. e5 {[%emt 0:00:27]} Kf5 {[%emt 0:00:27] Active counter play!} 58. Kh3 {[%emt 0:01:04]} Rg7 {[%emt 0:00:40]} 59. Kh2 {[%emt 0:02:19]} Ke6 {[%emt 0:00:06]} 60. Kh3 {[%emt 0:00:10]} Rg3+ {[%emt 0:00:20]} 61. Kxh4 $2 {[%emt 0:01:04][%mdl 8192] [#]} (61. Kh2 $11) 61... Rxg2 $3 {[%emt 0:01:14][%cal Rb7h7][%mdl 512]} 62. Qb1 {[%emt 0:01:30] [#]} (62. Qxg2 Rh7+) 62... Rh7+ $3 {[%emt 0:00:08][%mdl 512] A superb game by Dzhumaev.   Weighted Error Value: White=0.48/Black=0.49} 0-1

[Event "20th Delhi GM Open 2023"]
[Site "New Delhi"]
[Date "2023.03.27"]
[Round "7.5"]
[White "Anuj Shrivatri"]
[Black "Mchedlishvili, Mikheil"]
[Result "1/2-1/2"]
[ECO "E94"]
[WhiteElo "2407"]
[BlackElo "2569"]
[Annotator "TA"]
[PlyCount "96"]
[EventDate "2023.03.23"]
[EventType "swiss"]
[EventCountry "IND"]
[SourceTitle "playchess.com"]
[Source "ChessBase"]
[SourceQuality "1"]
[TimeControl "5400+30"]

{[%evp 18,96,66,61,80,57,69,71,52,59,64,48,48,45,51,43,43,38,38,16,20,27,18,19,24,26,59,62,121,122,121,121,362,356,304,290,290,290,304,299,337,237,237,205,205,201,215,122,186,122,102,101,104,118,112,118,111,109,183,183,183,183,183,183,183,183,183,183,183,183,183,183,183,183,183,183,183,0,183,0,183]} 1. c4 {[%emt 0:00:15]} Nf6 {[%emt 0:02:54]} 2. Nf3 {[%emt 0:00:25]} g6 {[%emt 0:00:54]} 3. Nc3 {[%emt 0:00:27]} Bg7 {[%emt 0:00:54]} 4. e4 {[%emt 0:00:13]} d6 {[%emt 0:01:32]} 5. d4 {[%emt 0:05:29][%cal Bd2d4,Bd4d5][%mdl 32]} O-O {[%emt 0:00:22]} 6. Be2 {[%emt 0:00:05]} Nbd7 {[%emt 0:01:10]} 7. O-O {[%emt 0:00:10]} e5 {[%emt 0:00:15]} 8. Be3 {[%emt 0:00:07]} Qe7 {[%emt 0:01:04]} 9. Qc2 {[%emt 0:01:28]} c6 {[%emt 0:04:03]} 10. d5 {[%emt 0:03:43]} c5 {[%emt 0:03:41] E94: King's Indian: Classical: 6 Be2 e5 7 0-0: Various Black 7th moves.} 11. Kh1 {[%emt 0:12:18] [#]} Ne8 $146 {[%emt 0:10:00]} ({Predecessor:} 11... h6 12. h3 Kh8 13. g4 Nh7 14. Rg1 Ndf6 15. Qd2 Ng8 16. Rg3 f5 17. gxf5 gxf5 18. exf5 Bxf5 {1-0 Sadhwani,R (2627)-Leitao,R (2592) Titled Tuesday intern op 17th Jan Late blitz 2023 (3)}) 12. g4 {[%emt 0:04:30] White has more active pieces. The black rooks are badly placed.} Ndf6 {[%emt 0:01:52] White is better.} 13. h3 {[%emt 0:01:49]} h5 {[%emt 0:03:11]} 14. Nh2 {[%emt 0:00:53]} (14. g5 $5 {[%cal Rg5f6]} Nh7 15. Kg2 $11 (15. h4 Qd7 $11)) 14... hxg4 {[%emt 0:02:09]} 15. hxg4 {[%emt 0:00:13]} ({Inferior is} 15. Nxg4 Bxg4 16. hxg4 Nxg4 17. Bxg4 Qh4+ 18. Kg2 Qxg4+ 19. Kh2 f5 $17) 15... Nh7 $1 {[%emt 0:00:36]} 16. Qd2 {[%emt 0:05:11]} Bf6 {[%emt 0:02:48]} 17. Rg1 {[%emt 0:02:56]} Bg5 {[%emt 0:00:53]} 18. Nf3 {[%emt 0:01:37]} Bxe3 {[%emt 0:02:15]} 19. Qxe3 {[%emt 0:00:09]} Kg7 {[%emt 0:04:29] Prevents Qh6+.} 20. Rg3 {[%emt 0:13:06]} Rh8 {[%emt 0:08:25][%cal Oc8g4]} 21. Kg2 {[%emt 0:04:59]} ({Much worse is} 21. Rh3 Bxg4 22. Qh6+ (22. Rh2 Bxf3+ 23. Bxf3 Qg5 $15) 22... Kg8 $15) 21... Nef6 {[%emt 0:11:01]} 22. Nh4 $36 {[%emt 0:07:00][%mdl 2048] White is more active.} Ng8 {[%emt 0:05:56] [#]} (22... Nf8 $14 23. Nf5+ gxf5 24. gxf5+ Ng6) 23. Rh1 $1 $16 {[%emt 0:07:25]} Ng5 {[%emt 0:04:35] [#]} 24. Nb5 $1 {[%emt 0:03:11]} Rxh4 $2 {[%emt 0:13:05]} 25. Rxh4 $18 {[%emt 0:02:50]} f6 {[%emt 0:04:02]} 26. f4 {[%emt 0:04:50]} exf4 {[%emt 0:01:43]} 27. Qxf4 {[%emt 0:00:06]} Qe5 {[%emt 0:00:09]} 28. Qxe5 {[%emt 0:00:52]} dxe5 {[%emt 0:00:03]} 29. Nc3 {[%emt 0:01:15]} Bd7 {[%emt 0:00:53]} 30. Rh1 {[%emt 0:01:06]} Nh6 {[%emt 0:00:24]} 31. Rb1 {[%emt 0:00:30] b4 is the strong threat.} b6 {[%emt 0:01:25]} 32. b4 {[%emt 0:01:50]} (32. Rh1 $18) 32... Rc8 {[%emt 0:01:03]} (32... cxb4 $16 {keeps fighting.} 33. Rxb4 Rc8) 33. a4 {[%emt 0:00:27]} (33. b5 $18) 33... cxb4 $16 {[%emt 0:00:47]} 34. Rxb4 {[%emt 0:00:06][%cal Oa4a5] And now a5! would win.} Rc5 {[%emt 0:00:16]} 35. Kf2 {[%emt 0:01:12]} Nhf7 {[%emt 0:00:38]} 36. Ke3 {[%emt 0:01:41]} Nd6 {[%emt 0:00:24]} 37. Bd3 {[%emt 0:00:42]} Nb7 {[%emt 0:01:30]} (37... Ra5 $16 38. Nb5 Nb7) 38. Nb5 $18 {[%emt 0:03:12]} a5 {[%emt 0:00:52]} 39. Rb2 {[%emt 0:00:43]} Bxb5 {[%emt 0:00:04]} 40. Rxb5 {[%emt 0:00:13]} Rxb5 {[%emt 0:00:06]} 41. cxb5 {[%emt 0:00:37][%mdl 4096] Endgame KRB-KNN} Nf7 {[%emt 0:02:44]} 42. Rg2 {[%emt 0:03:09]} Nc5 {[%emt 0:00:15]} 43. Rc2 {[%emt 0:00:27][%cal Oc2c5] Hoping for Rxc5!} Nd6 {[%emt 0:00:08]} 44. Ke2 {[%emt 0:00:36][%cal Oc2c5] Threatens to win with Rxc5!} Kf8 {[%emt 0:01:06]} 45. Rc1 {[%emt 0:00:25]} g5 {[%emt 0:00:18]} 46. Rf1 {[%emt 0:02:13]} Kg7 {[%emt 0:00:22]} 47. Rc1 {[%emt 0:01:03][%cal Oc1c5] Black must now prevent Rxc5!} Kf8 {[%emt 0:00:05]} 48. Rf1 {[%emt 0:00:55]} Kg7 $1 {[%emt 0:00:06] Weighted Error Value: White=0.22 (precise) /Black=0.20 (precise)} 1/2-1/2

[Event "20th Delhi GM Open 2023"]
[Site "New Delhi"]
[Date "2023.03.27"]
[Round "7.6"]
[White "Teterev, Vitaly"]
[Black "Krasenkow, Michal"]
[Result "0-1"]
[ECO "D79"]
[WhiteElo "2377"]
[BlackElo "2527"]
[Annotator "TA"]
[PlyCount "76"]
[EventDate "2023.03.23"]
[EventType "swiss"]
[EventCountry "IND"]
[SourceTitle "playchess.com"]
[Source "ChessBase"]
[SourceQuality "1"]
[TimeControl "5400+30"]

{[%evp 21,76,12,16,21,28,16,3,8,6,8,0,0,4,-26,-23,-23,0,0,0,-17,0,0,0,0,0,0,-9,-24,0,0,0,0,0,0,0,0,0,-38,113,-287,-272,-676,-654,-711,-721,-727,-718,-715,-723,-721,-716,-666,-597,-1027,-769,-29991,-29992]} 1. Nf3 {[%emt 0:00:13]} d5 {[%emt 0:00:09]} 2. g3 {[%emt 0:00:00]} g6 {[%emt 0:00:12]} 3. Bg2 {[%emt 0:00:06]} Bg7 {[%emt 0:00:04]} 4. d4 {[%emt 0:00:06]} Nf6 {[%emt 0:00:05][%cal Bg8f6,Bf6d7,Bd7b6,Bb6c4][%mdl 32]} 5. c4 {[%emt 0:00:11]} c6 {[%emt 0:00:04]} 6. cxd5 {[%emt 0:00:11]} cxd5 {[%emt 0:00:05]} 7. Nc3 {[%emt 0:00:03]} O-O {[%emt 0:00:13]} 8. Ne5 {[%emt 0:00:09]} e6 {[%emt 0:00:07]} 9. O-O {[%emt 0:00:13]} Nfd7 {[%emt 0:00:04]} 10. Nf3 {[%emt 0:00:25]} Nc6 {[%emt 0:00:24]} 11. Bf4 {[%emt 0:00:38]} Qb6 {[%emt 0:01:54]} 12. Na4 {[%emt 0:03:16] D79: Fianchetto Grünfeld: Symmetrical Variation (6 0-0 c6 7 cxd5 cxd5).} Qa5 {[%emt 0:03:34]} 13. a3 {[%emt 0:10:48]} Nb6 {[%emt 0:06:06]} 14. Nc3 {[%emt 0:14:18] Black should prevent b4. The position is equal.} Nc4 {[%emt 0:00:10]} 15. b4 {[%emt 0:02:22] [#]} Qd8 $146 {[%emt 0:03:42]} ({Predecessor:} 15... Qb6 16. e3 a5 17. b5 Ne7 18. Nd2 Nxd2 19. Qxd2 h6 20. h4 Bd7 21. Rab1 Rfc8 {1-0 Kempinski,R (2593)-Piorun,K (2526) POL-chT Wroclaw 2011 (1.5)}) 16. b5 {[%emt 0:06:06]} Ne7 {[%emt 0:02:57]} 17. e4 {[%emt 0:03:12]} dxe4 {[%emt 0:02:36]} 18. Nxe4 {[%emt 0:00:31]} Nd5 {[%emt 0:00:07]} 19. Bg5 {[%emt 0:01:43]} f6 {[%emt 0:00:23]} 20. Bc1 {[%emt 0:00:57]} b6 {[%emt 0:15:30]} 21. Qd3 {[%emt 0:06:39]} Nd6 {[%emt 0:00:22]} 22. a4 {[%emt 0:01:02]} Nxe4 {[%emt 0:00:57]} 23. Qxe4 {[%emt 0:00:06]} a6 {[%emt 0:06:29] Black wants to play ...axb5.} 24. Ba3 {[%emt 0:13:23]} Rf7 {[%emt 0:07:16]} 25. Nd2 {[%emt 0:18:07]} axb5 {[%emt 0:03:25]} 26. axb5 {[%emt 0:00:14][%cal Oa3e7] [#] Threatens to win with Be7!} Rfa7 {[%emt 0:00:10] Prevents Be7.} 27. Nc4 {[%emt 0:03:48]} Bf8 {[%emt 0:05:01][%cal Rf8a3]} 28. Qd3 {[%emt 0:02:52]} Bb7 {[%emt 0:05:43]} 29. Qb3 {[%emt 0:01:31]} Ra4 $2 {[%emt 0:00:25]} (29... Nf4 $15 {stays ahead.} 30. gxf4 Bxg2 {[%mdl 64] Remove Defender} 31. Kxg2 Qd5+ 32. Qf3 Qxc4) 30. Bh3 $2 {[%emt 0:04:18][%mdl 8192] Loses the game.} (30. Be7 $1 $16 {[%cal Re7d8]} Bxe7 31. Rxa4 Rxa4 32. Qxa4) 30... Nf4 $19 {[%emt 0:03:33][%mdl 64] [#] Discovered Attack} 31. gxf4 {[%emt 0:03:04]} (31. Bxe6+ Nxe6 32. Nxb6 {[%mdl 64] Remove Defender} Qxb6 33. Bc5) 31... Qd5 {[%emt 0:00:09][%csl Gb7][%cal Rd5h1]} ({Not} 31... Qxd4 32. Bxe6+ Kh8 33. Bb2 Qxf4 34. Rxa4 $18) 32. f3 {[%emt 0:00:32][%cal Ob3e3] Black must now prevent Qe3!} Rxa3 {[%emt 0:03:10]} ({Weaker is} 32... Rxc4 33. Qe3 f5 34. Bxf8 Kxf8 35. Rxa8+ Bxa8 36. Re1 $17) 33. Rxa3 {[%emt 0:02:07]} Rxa3 {[%emt 0:00:03][%mdl 64] Pin} (33... Bxa3 $2 34. Qe3 f5 35. Nxa3 $18) 34. Qc2 {[%emt 0:00:17]} Qxd4+ {[%emt 0:00:29]} (34... Rxf3 $2 {is the wrong capture.} 35. Rxf3 Qxf3 36. Bg2 $19) 35. Kg2 {[%emt 0:00:41] White is weak on the dark squares} Rc3 {[%emt 0:02:01]} 36. Bxe6+ {[%emt 0:03:44]} Kg7 {[%emt 0:00:13]} 37. Qe2 {[%emt 0:00:12]} Qxf4 {[%emt 0:00:10]} 38. Nxb6 {[%emt 0:00:54]} Bd6 {[%emt 0:00:27] Weighted Error Value: White=0.92/Black=0.14 (very precise)} 0-1

[Event "20th Delhi GM Open 2023"]
[Site "New Delhi"]
[Date "2023.03.27"]
[Round "7.7"]
[White "Paichadze, Luka"]
[Black "Zhakshylykov, Erzhan"]
[Result "1-0"]
[ECO "C02"]
[WhiteElo "2515"]
[BlackElo "2274"]
[Annotator "TA"]
[PlyCount "61"]
[EventDate "2023.03.23"]
[EventType "swiss"]
[EventCountry "IND"]
[SourceTitle "playchess.com"]
[Source "ChessBase"]
[SourceQuality "1"]
[TimeControl "5400+30"]

{[%evp 11,61,0,0,-26,-19,-40,-17,-5,-12,-16,-18,-27,0,0,13,0,0,0,0,0,0,0,27,7,0,0,10,6,50,50,70,64,181,166,180,195,181,165,166,145,163,154,161,135,199,112,424,422,627,592,541,541]} 1. e4 {[%emt 0:02:03]} e6 {[%emt 0:00:13]} 2. d4 {[%emt 0:00:08]} d5 {[%emt 0:00:05]} 3. e5 {[%emt 0:00:05]} c5 {[%emt 0:00:05]} 4. c3 {[%emt 0:00:06]} Nc6 {[%emt 0:00:05]} 5. Nf3 {[%emt 0:00:08]} Qb6 {[%emt 0:00:06]} 6. Bd3 {[%emt 0:01:07]} cxd4 {[%emt 0:01:16]} 7. O-O $1 {[%emt 0:00:39][%mdl 4] is more profitable than 7.cxd4 at the moment. C02: French: Advance Variation.} Bd7 {[%emt 0:02:05]} 8. Re1 {[%emt 0:00:45]} Nge7 {[%emt 0:05:02][%cal Bg8e7,Be7g6,Bg6h4,Bh4f3][%mdl 32]} 9. Nbd2 {[%emt 0:01:27] The position is equal.} Rc8 {[%emt 0:04:52]} 10. Nb3 {[%emt 0:06:11]} dxc3 {[%emt 0:12:11]} 11. bxc3 {[%emt 0:01:18]} Ng6 {[%emt 0:05:07]} (11... Na5 $5 {[%cal Ra5b3]}) 12. h4 {[%emt 0:05:29][%cal Bh2h4,Bh4h5][%mdl 32]} Be7 {[%emt 0:07:15]} 13. h5 {[%emt 0:06:58]} Nh4 {[%emt 0:15:54] [#]} 14. Rb1 $146 {[%emt 0:04:46]} ({Predecessor:} 14. Nxh4 Bxh4 15. Be3 Qd8 16. Bc5 Be7 17. Qg4 O-O 18. Bd4 Nxd4 19. cxd4 h6 20. Re3 {1-0 Shevchenko,K (2652)-Niemann,H (2637) Junior Speed Qual blitz 2022 (2.22)}) 14... Nxf3+ $1 {[%emt 0:08:30]} 15. Qxf3 {[%emt 0:01:05]} Qc7 {[%emt 0:06:24]} 16. Qg3 {[%emt 0:02:55]} g6 {[%emt 0:00:26]} 17. Nd4 {[%emt 0:03:03]} Nxd4 {[%emt 0:05:45]} (17... gxh5 $2 18. Nb5 Qb8 19. Nd6+ Bxd6 20. exd6 $18) 18. cxd4 {[%emt 0:00:03]} Qc3 {[%emt 0:02:19] Inhibits Bd2.} (18... gxh5 $2 19. Qg7 Rf8 20. Bh6 $18) (18... Qa5 $5 {[%cal Ra5e1]} 19. Bg5 Bxg5 20. Qxg5 Rf8 $11) 19. Bh6 {[%emt 0:12:40]} Bc6 {[%emt 0:02:45]} (19... b6 $5 {[%cal Rc3d4]}) 20. Qe3 {[%emt 0:03:50][%mdl 1024] White has compensation.} Rg8 {[%emt 0:01:56]} 21. Rec1 {[%emt 0:02:46]} Qa3 {[%emt 0:03:45]} (21... Qa5 $1 $14) 22. Qd2 $1 $18 {[%emt 0:05:59]} Kd7 {[%emt 0:01:28]} 23. Rb3 {[%emt 0:09:46]} Qa4 {[%emt 0:00:08]} 24. Qb2 $36 {[%emt 0:00:10][%mdl 2048] White is really pushing.} Rc7 {[%emt 0:01:55]} 25. hxg6 {[%emt 0:02:37]} hxg6 {[%emt 0:00:09]} 26. Bd2 {[%emt 0:00:20] Bb4 would be deadly.} a6 {[%emt 0:04:43]} 27. Bc2 {[%emt 0:04:36]} Rgc8 {[%emt 0:01:30] [#]} 28. Bd1 {[%emt 0:06:55]} ({White should play} 28. Rf3 $1 $18 Qb5 29. Qa1) 28... Ke8 $2 {[%emt 0:04:53][%mdl 8192] [#]} (28... Bb5 $16) 29. Qa1 $1 {[%emt 0:03:04] White is clearly winning.} Bb5 {[%emt 0:03:31]} (29... Ba3 $142) 30. Rbc3 {[%emt 0:00:33]} Rxc3 {[%emt 0:00:13]} 31. Rxc3 {[%emt 0:01:29] Weighted Error Value: White=0.09 (flawless) /Black=0.35} ({Worse is} 31. Bxa4 Rxc1+ 32. Bxc1 Bxa4 $11) 1-0